fUSD/lending_fUSD_20240214
["ID","MTS","AMOUNT","RATE_DAILY","PERIOD"]
[314039051,1707942645949,-165.72984067,0.0003402,2]
[314039052,1707942645958,-564.54,0.00034025,2]
[314039053,1707942645968,-564.54,0.00034196,2]
[314039054,1707942645977,-4392.82169168,0.00034216,6]
[314039055,1707942645987,-429.0,0.00034226,2]
[314039056,1707942645996,-857.0,0.00034226,2]
[314039057,1707942646005,-1004.0,0.00034226,2]
[314039058,1707942646015,-237.0,0.00034226,2]
[314039059,1707942646024,-343.0,0.00034226,2]
[314039060,1707942646032,-1138.0,0.00034226,2]
[314039062,1707942646042,-150.0,0.00034226,2]
[314039063,1707942646051,-180.0,0.00034295,2]
[314039064,1707942646060,-564.54,0.00034366,2]
[314039065,1707942646070,-580.01,0.00034463,2]
[314039066,1707942646079,-4392.82169168,0.00034495,7]
[314039067,1707942646088,-170.8,0.000345,2]
[314039068,1707942646097,-165.72984067,0.00034504,2]
[314039069,1707942646106,-4364.8,0.00034505,2]
[314039070,1707942646115,-240.0,0.00034521,2]
[314039071,1707942646124,-564.54,0.00034537,2]
[314039072,1707942646134,-564.54,0.00034708,2]
[314039073,1707942646143,-21964.1084584,0.0003478,7]
[314039074,1707942646152,-21964.1084584,0.00034789,7]
[314039075,1707942646161,-564.54,0.00034879,2]
[314039076,1707942646172,-153.93,0.000349,2]
[314039077,1707942646181,-153.93,0.000349,2]
[314039078,1707942646190,-1115.008425,0.00034931,2]
[314039079,1707942646199,-293.0,0.00034967,3]
[314039080,1707942646208,-17571.2867667,0.0003498,8]
[314039081,1707942646217,-165.72984067,0.00034988,2]
[314039082,1707942646226,-48321.0386085,0.0003499,8]
[314039083,1707942646235,-100000.0,0.00035,15]
[314039084,1707942646245,-1500.0,0.00035,3]
[314039085,1707942646254,-1144.19362857,0.00035025,4]
[314039086,1707942646263,-4392.82169168,0.0003504,8]
[314039087,1707942646273,-564.54,0.0003505,2]
[314039088,1707942646282,-1393.760531,0.00035068,2]
[314039089,1707942646291,-1000.0,0.000351,2]
[314039090,1707942646300,-846.95,0.00035115,2]
[314039091,1707942646310,-613.22808729,0.00035207,2]
[314039092,1707942646320,-166.13,0.0003522,2]
[314039093,1707942646331,-564.54,0.00035221,2]
[314039094,1707942646342,-153.72,0.00035269,2]
[314039095,1707942646352,-4392.82169168,0.00035287,8]
[314039096,1707942646363,-1951.264743,0.00035342,2]
[314039097,1707942646375,-564.54,0.00035392,2]
[314039098,1707942646384,-165.72984067,0.00035471,2]
[314039099,1707942646393,-8785.64338336,0.00035557,9]
[314039100,1707942646403,-564.54,0.00035563,2]
[314039101,1707942646416,-153.38,0.000356,3]
[314039102,1707942646425,-153.38,0.000356,3]
[314039103,1707942646434,-153.38,0.000356,3]
[314039104,1707942646443,-153.38,0.000356,3]
[314039105,1707942646453,-153.38,0.000356,3]
[314039106,1707942646462,-153.38,0.000356,3]
[314039107,1707942646471,-153.38,0.000356,3]
[314039108,1707942646480,-153.38,0.000356,3]
[314039109,1707942646489,-153.38,0.000356,3]
[314039110,1707942646498,-153.38,0.000356,3]
[314039111,1707942646507,-564.54,0.00035734,2]
[314039112,1707942646516,-4392.82169168,0.00035747,9]
[314039113,1707942646525,-10387.898106,0.00035757,2]
[314039114,1707942646534,-240.0,0.00035798,2]
[314039115,1707942646544,-261.22966269,0.00035887,10]
[314039116,1707942646553,-4392.82169168,0.0003589,9]
[314039117,1707942646564,-217.20266111,0.000359,2]
[314039118,1707942646573,-165.72984067,0.00035955,2]
[314039119,1707942646582,-21964.1084584,0.0003598,9]
[314039120,1707942646591,-4392.82169168,0.00035986,9]
[314039121,1707942646601,-26356.9301501,0.0003599,9]
[314039122,1707942646610,-35826.48464018,0.00036,16]
[314039123,1707942646625,-6910.00000003,0.00036,16]
[314039124,1707942646637,-1242.08461943,0.00036,16]
[314039128,1707942646726,-670.72747518,0.00036,16]
[314039129,1707942646738,-10376.51159998,0.00036,16]
[314039130,1707942646749,-1200.0,0.00036,16]
[314039131,1707942646924,-43774.1916652,0.00036,16]
[314039132,1707942646933,-274.89637063,0.00036,4]
[314039133,1707942646943,-2230.01685,0.00036,2]
[314039134,1707942646952,-150.0,0.00036,20]
[314039135,1707942646961,-353.76,0.00036,2]
[314039136,1707942646970,-502.2306202,0.00036,2]
[314039137,1707942646979,-258.62,0.00036,30]
[314039138,1707942646988,-400.0,0.00036036,2]
[314039139,1707942646997,-258.62,0.00036137,30]
[314039140,1707942647005,-4364.8,0.00036149,2]
[314039141,1707942647014,-1000.0,0.000362,2]
[314039142,1707942647023,-592.0,0.0003623,2]
[314039143,1707942647032,-200.0,0.00036251,2]
[314039144,1707942647040,-258.62,0.00036274,30]
[314039145,1707942647049,-258.62,0.00036411,30]
[314039146,1707942647059,-165.72984067,0.00036439,2]
[314039147,1707942647068,-873.0,0.000365,2]
[314039148,1707942647078,-258.62,0.00036548,30]
[314039149,1707942647087,-166.13,0.00036616,2]
[314039150,1707942647096,-846.95,0.00036642,2]
[314039151,1707942647105,-880.48330299,0.0003666,5]
[314039152,1707942647114,-347.36,0.0003669,2]
[314039153,1707942647124,-580.01,0.00036727,2]
[314039154,1707942647135,-10387.898106,0.00036786,2]
[314039155,1707942647144,-613.22808722,0.00036786,2]
[314039156,1707942647155,-347.36,0.00036883,2]
[314039157,1707942647166,-165.72984067,0.00036923,2]
[314039158,1707942647175,-600.0,0.00036944,2]
[314039159,1707942647185,-100000.0,0.00037,17]
[314039160,1707942647194,-1550.0,0.00037,3]
[314039161,1707942647203,-150.0,0.00037,2]
[314039162,1707942647213,-250.0,0.00037,2]
[314039163,1707942647222,-150.0,0.00037,2]
[314039164,1707942647230,-300.0,0.00037,2]
[314039165,1707942647240,-200.0,0.00037023,10]
[314039166,1707942647249,-500.0,0.00037023,10]
[314039167,1707942647258,-153.72,0.00037045,2]
[314039168,1707942647268,-240.0,0.00037075,2]
[314039169,1707942647277,-347.36,0.00037076,2]
[314039170,1707942647287,-153.93,0.000372,3]
[314039171,1707942647297,-153.93,0.000372,3]
[314039172,1707942647307,-153.33879303,0.00037244,2]
[314039173,1707942647318,-347.36,0.00037269,2]
[314039174,1707942647332,-2614.5634,0.000373,2]
[314039175,1707942647341,-152.0,0.00037359,3]
[314039176,1707942647351,-164.47672371,0.00037365,7]
[314039177,1707942647363,-836.8137,0.000374,2]
[314039178,1707942647374,-165.72984067,0.00037406,2]
[314039179,1707942647383,-347.36,0.00037462,2]
[314039180,1707942647394,-604.91722639,0.00037476,9]
[314039181,1707942647404,-604.91722632,0.00037476,9]
[314039182,1707942647414,-4000.0,0.000375,6]
[314039183,1707942647424,-6444.0,0.0003751,2]
[314039184,1707942647435,-7876.0,0.00037511,2]
[314039185,1707942647445,-150.0,0.00037548,2]
[314039186,1707942647454,-150.0,0.00037548,2]
[314039187,1707942647464,-170.0,0.0003758,45]
[314039188,1707942647474,-150.0,0.00037592,2]
[314039189,1707942647485,-153.38,0.000376,3]
[314039190,1707942647495,-153.38,0.000376,3]
[314039191,1707942647505,-153.38,0.000376,3]
[314039192,1707942647514,-153.38,0.000376,3]
[314039193,1707942647523,-153.38,0.000376,3]
[314039194,1707942647534,-153.38,0.000376,3]
[314039195,1707942647544,-153.38,0.000376,3]
[314039196,1707942647555,-153.38,0.000376,3]
[314039197,1707942647566,-153.38,0.000376,3]
[314039198,1707942647576,-153.38,0.000376,3]
[314039199,1707942647585,-347.36,0.00037655,2]
[314039200,1707942647594,-200.0,0.00037695,2]
[314039201,1707942647603,-4364.8,0.00037793,2]
[314039202,1707942647612,-183533.36674061,0.000378,3]
[314039203,1707942647628,-493.9784691,0.000378,3]
[314039204,1707942647704,-236184.26799371,0.000378,3]
[314039205,1707942647715,-603.18040177,0.000378,3]
[314039206,1707942647728,-4323.49528646,0.000378,3]
[314039207,1707942647740,-2590.6,0.000378,3]
[314039208,1707942647756,-12400.6083091,0.000378,3]
[314039209,1707942647767,-13901.05655188,0.000378,3]
[314039210,1707942647792,-580.4449387,0.000378,3]
[314039211,1707942647811,-49793.70885506,0.000378,3]
[314039232,1707943357671,262.0,0.00022162,2]
[314039233,1707943576015,189.8,0.00029595,120]
[314039235,1707943780711,-262.0,0.00023805,2]
[314039236,1707943780733,-1250.0,0.00025,3]
[314039242,1707943831610,-262.0,0.00025449,2]
[314039243,1707943831621,-1300.0,0.00027,3]
[314039244,1707943831636,-262.0,0.00027093,2]
[314039245,1707943831646,-192.160077,0.000272,2]
[314039246,1707943831655,-262.0,0.00028737,2]
[314039247,1707943831667,-553.76,0.00028784,2]
[314039248,1707943831680,-165.72984067,0.00028899,2]
[314039249,1707943831691,-499.99,0.00028899,2]
[314039250,1707943831702,-1403.72341438,0.00028899,2]
[314039323,1707943837439,-17061.97658562,0.00028899,2]
[314039324,1707943837449,-3085.0,0.000289,2]
[314039325,1707943837459,-405.66512816,0.000289,2]
[314039327,1707943837566,-504.41487184,0.000289,2]
[314039328,1707943837586,-155.35919301,0.00029,2]
[314039329,1707943837609,-3199.999998,0.00029,2]
[314039330,1707943837642,-500.0,0.00029,2]
[314039331,1707943837668,-18353.64080899,0.00029,2]
[314039332,1707943837686,-2108.67,0.00029216,2]
[314039333,1707943837707,-500.0,0.00029283,2]
[314039334,1707943837729,-150.99,0.00029283,2]
[314039335,1707943837752,-250.0,0.00029294,2]
[314039336,1707943837774,-150.0,0.0002932,2]
[314039337,1707943837796,-153.54,0.00029452,2]
[314039338,1707943837819,-153.54,0.00029561,2]
[314039339,1707943837842,-153.54,0.00029671,2]
[314039340,1707943837863,-250.0,0.00029748,2]
[314039341,1707943837885,-153.54,0.00029781,2]
[314039342,1707943837906,-240.0,0.00029791,2]
[314039343,1707943837926,-153.54,0.0002989,2]
[314039344,1707943837947,-3000.0,0.000299,2]
[314039346,1707943837968,-3000.0,0.0002991,2]
[314039348,1707943837990,-872.6176,0.0002991,2]
[314039350,1707943838011,-3000.0,0.0002992,2]
[314039351,1707943838033,-3000.0,0.0002993,2]
[314039353,1707943838056,-3000.0,0.0002994,2]
[314039355,1707943838078,-13661.54523235,0.00029949,2]
[314039357,1707943838106,-540.90981559,0.00029949,2]
[314039362,1707943838176,-8384.05815138,0.00029949,2]
[314039364,1707943838201,-930.80606297,0.00029949,2]
[314039366,1707943838213,-365.09334406,0.00029949,2]
[314039368,1707943838225,-364.89736001,0.00029949,2]
[314039370,1707943838237,-529.82133345,0.00029949,2]
[314039373,1707943838254,-5058.86086469,0.00029949,2]
[314039375,1707943838265,-501.40000202,0.00029949,2]
[314039551,1707943840033,-1175.42221325,0.00029949,2]
[314039554,1707943840045,-10559.9742471,0.00029949,2]
[314039556,1707943840058,-1748.56626615,0.00029949,2]
[314039558,1707943840070,-1120.0285415,0.00029949,2]
[314039560,1707943840082,-644.08472678,0.00029949,2]
[314039563,1707943840094,-524.82900496,0.00029949,2]
[314039565,1707943840110,-293.21426,0.00029949,2]
[314039568,1707943840122,-425.65719286,0.00029949,2]
[314039642,1707943840842,-783.61349897,0.00029949,2]
[314039649,1707943840896,-383.70595248,0.00029949,2]
[314039651,1707943840909,-1129.69322486,0.00029949,2]
[314039795,1707943842610,-15284.87870457,0.00029949,2]
[314039796,1707943842619,-1222.57345961,0.0002995,2]
[314039797,1707943842633,-1777.42654039,0.0002995,2]
[314039798,1707943842642,-160.00370979,0.0002996,2]
[314039799,1707943842654,-2839.99629021,0.0002996,2]
[314039800,1707943842663,-3000.0,0.0002997,2]
[314039801,1707943842673,-166.42876208,0.0002998,2]
[314039802,1707943842719,-2833.57123792,0.0002998,2]
[314039803,1707943842729,-3000.0,0.0002999,2]
[314039804,1707943842738,-153.54,0.0003,2]
[314039805,1707943842747,-3000.0,0.0003,2]
[314039806,1707943842756,-3000.0,0.0003001,2]
[314039807,1707943842766,-3000.0,0.0003002,2]
[314039808,1707943842775,-3000.0,0.0003003,2]
[314039809,1707943842784,-3000.0,0.0003004,2]
[314039810,1707943842793,-4059.070407,0.0003005,2]
[314039811,1707943842803,-177.3,0.00030107,2]
[314039812,1707943842812,-153.54,0.00030109,2]
[314039813,1707943842821,-153.54,0.00030219,2]
[314039814,1707943842831,-153.54,0.00030329,2]
[314039815,1707943842841,-262.0,0.00030381,2]
[314039816,1707943842850,-166.41,0.00030435,2]
[314039817,1707943842860,-153.54,0.00030438,2]
[314039818,1707943842869,-153.54,0.00030548,2]
[314039819,1707943842878,-300.0,0.00030652,2]
[314039821,1707943842887,-177.3,0.00030655,2]
[314039823,1707943842897,-153.54,0.00030658,2]
[314039825,1707943842906,-152.62,0.00030702,2]
[314039827,1707943842916,-2156.37,0.00030765,2]
[314039829,1707943842925,-2000.0,0.00030765,2]
[314039831,1707943842935,-153.54,0.00030767,2]
[314039834,1707943842944,-153.54,0.00030877,2]
[314039836,1707943842953,-153.54,0.00030986,2]
[314039838,1707943842962,-553.76,0.00031048,2]
[314039840,1707943842971,-26682.43535031,0.00031107,2]
[314039842,1707943842980,-2472.87,0.00031117,2]
[314039845,1707943842990,-177.3,0.00031203,2]
[314039846,1707943842999,-250.0,0.00031527,2]
[314039848,1707943843008,-4145.9,0.00031527,2]
[314039850,1707943843017,-11219.33,0.00031527,2]
[314039852,1707943843027,-360.9947,0.00031605,2]
[314039855,1707943843036,-3099.6202,0.00031605,2]
[314039856,1707943843046,-760.0,0.0003166,2]
[314039859,1707943843056,-7267.24445535,0.00031704,7]
[314039861,1707943843065,-2291.42994076,0.00031704,7]
[314039863,1707943843074,-229.14299408,0.00031704,7]
[314039865,1707943843083,-50000.0,0.00031704,7]
[314039867,1707943843092,-32469.95517758,0.00031704,7]
[314039869,1707943843101,-35287.04,0.00031705,2]
[314039871,1707943843110,-366.3,0.00031706,2]
[314039873,1707943843120,-166.72,0.0003173,2]
[314039874,1707943843129,-305.05407965,0.00031751,2]
[314039876,1707943843138,-27270.7991189,0.000318,3]
[314039879,1707943843147,-16362.4794713,0.00031878,3]
[314039880,1707943843157,-35287.04,0.00031888,2]
[314039881,1707943843166,-5454.15982377,0.00031949,3]
[314039882,1707943843176,-5903.697,0.00031959,2]
[314039883,1707943843186,-168.77,0.00031977,2]
[314039884,1707943843195,-300.0,0.00032022,2]
[314039885,1707943843204,-262.0,0.00032025,2]
[314039886,1707943843212,-16362.4794713,0.00032061,3]
[314039888,1707943843221,-35287.04,0.00032071,2]
[314039890,1707943843230,-150.0,0.0003216,2]
[314039892,1707943843239,-150.0,0.0003216,2]
[314039894,1707943843248,-150.0,0.0003216,2]
[314039896,1707943843257,-2901.55,0.00032191,2]
[314039898,1707943843266,-163.28,0.00032223,2]
[314039900,1707943843275,-16362.4794713,0.00032244,3]
[314039902,1707943843285,-35287.04,0.00032254,2]
[314039904,1707943843294,-250.0,0.0003235,2]
[314039905,1707943843305,-21816.6392951,0.00032428,4]
[314039908,1707943843314,-181.10463162,0.00032428,2]
[314039910,1707943843322,-3439.24571126,0.00032437,2]
[314040047,1707943870128,48488.0,0.00023,2]
[314040048,1707943870154,7042.0,0.00023,2]
[314040049,1707943870179,7304.0,0.00023,2]
[314040050,1707943870206,7304.0,0.00023,2]
[314040051,1707943870231,5304.0,0.00023,2]
[314040052,1707943870256,304.0,0.00023,2]
[314040053,1707943870277,173049.0,0.00023,2]
[314040054,1707943870300,276720.44085519,0.00023,2]
[314040055,1707943870324,4995261.29954006,0.00023,2]
[314040056,1707943956570,221.69188808,0.0002211,2]
[314040057,1707943974937,437.1750005,0.0002,2]
[314040058,1707944020665,3683.69235239,0.0002,2]
[314040059,1707944027850,6653.0,0.0002,2]
[314040060,1707944030103,1635.65340314,0.000181,2]
[314040061,1707944031879,2992107.48781583,0.00023,2]
[314040062,1707944036965,3950.0,0.0002,2]
[314040063,1707944048508,1000.0,0.000135,2]
[314040064,1707944048708,1976.49885611,0.0002,2]
[314040065,1707944048739,283.95454928,0.000125,2]
[314040067,1707944058115,158.30384599,0.0002,2]
[314040068,1707944060748,236.39427046,0.00022,2]
[314040069,1707944064134,235.1606757,0.000137,2]
[314040070,1707944064508,156.15106252,0.00022,2]
[314040071,1707944064882,206.62742956,0.0001,2]
[314040076,1707944069639,354.48,0.00022,2]
[314040091,1707944549851,150.0,0.00022,2]
[314040092,1707944604471,234.0,0.00022062,2]
[314040093,1707944617983,150.0,0.00022,2]
[314040094,1707944686150,150.0,0.00022,2]
[314040095,1707944739250,200.0,0.0002189,2]
[314040096,1707944740323,-188.87945822,0.00022548,2]
[314040097,1707944740343,-170.88,0.00022595,2]
[314040098,1707944740364,-559.10009919,0.0002283,2]
[314040099,1707944740384,-499.74092434,0.0002293,2]
[314040100,1707944740404,-3192.57118008,0.00022996,2]
[314040101,1707944740423,-150.0,0.00022999,2]
[314040102,1707944740443,-356311.75918725,0.00023,2]
[314040103,1707944759023,162.1523967,0.00022977,2]
[314040104,1707944845687,1384.9053,0.0002273,2]
[314040105,1707944919582,201.9062305,0.0002239,2]
[314040106,1707944924366,216894.9193,0.000229,2]
[314040107,1707944951184,-4655.34528714,0.0002313,2]
[314040108,1707944951215,-152.55019004,0.0002326,2]
[314040109,1707944951243,-801.14015965,0.0002336,2]
[314040116,1707944999472,257.0,0.00022162,2]
[314040120,1707945031687,-150.0,0.0002336,2]
[314040121,1707945031697,-150.0,0.0002336,2]
[314040122,1707945031707,-252.38757609,0.0002336,2]
[314040123,1707945031717,-203.22520032,0.0002346,2]
[314040124,1707945031727,-317.06003874,0.0002356,2]
[314040125,1707945031736,-611.16,0.0002366,2]
[314040126,1707945031746,-257.0,0.00023805,2]
[314040127,1707945031755,-152.55018997,0.00024272,2]
[314040128,1707945031766,-300.0,0.00024981,2]
[314040129,1707945031778,-3192.57118008,0.00024982,2]
[314040130,1707945031787,-6819.83770142,0.0002509,2]
[314040131,1707945031796,-5465.47341339,0.0002509,2]
[314040132,1707945031807,-200.0,0.00025272,2]
[314040133,1707945031816,-152.55018997,0.00025284,2]
[314040134,1707945031825,-1658.55,0.00025284,2]
[314040135,1707945031836,-500.0,0.00025292,2]
[314040136,1707945031845,-17698.82,0.00025292,2]
[314040137,1707945031854,-640.64,0.00025309,2]
[314040138,1707945031864,-200.0,0.00025368,2]
[314040139,1707945031874,-438.86,0.00025369,2]
[314040140,1707945031883,-4191.99,0.00025382,2]
[314040141,1707945031893,-214.6,0.00025392,2]
[314040142,1707945031904,-250.0,0.00025406,2]
[314040143,1707945031913,-4919.32,0.00025407,2]
[314040144,1707945031923,-2000.0,0.00025407,2]
[314040145,1707945031935,-257.0,0.00025449,2]
[314040146,1707945031950,-500.0,0.00025475,3]
[314040147,1707945031959,-947.27,0.00025494,2]
[314040148,1707945031969,-1808.2,0.00025536,2]
[314040149,1707945031978,-1303.77,0.00025536,2]
[314040150,1707945031988,-1370.6,0.00025558,2]
[314040151,1707945031997,-150.0,0.00025584,2]
[314040152,1707945032006,-250.0,0.00025612,2]
[314040153,1707945032016,-724.62,0.00025626,2]
[314040154,1707945032025,-200.0,0.00025702,2]
[314040155,1707945032035,-1186.25,0.00025702,2]
[314040156,1707945032046,-166.38,0.00025702,2]
[314040157,1707945032055,-250.0,0.00025702,2]
[314040159,1707945032065,-192.0,0.00025731,2]
[314040161,1707945032074,-3673.66627797,0.00025789,2]
[314040163,1707945032084,-151.97,0.00025805,2]
[314040165,1707945032094,-151.97,0.0002588,2]
[314040167,1707945032103,-611.16,0.00025924,2]
[314040168,1707945032113,-151.97,0.00025955,2]
[314040169,1707945032122,-151.97,0.00026029,2]
[314040170,1707945032131,-151.97,0.00026104,2]
[314040171,1707945032141,-169.97,0.00026172,2]
[314040172,1707945032150,-151.97,0.00026179,2]
[314040173,1707945032159,-151.97,0.00026253,2]
[314040174,1707945032168,-152.55018997,0.00026296,2]
[314040175,1707945032177,-3644.9227114,0.000263,2]
[314040176,1707945032187,-151.97,0.00026328,2]
[314040177,1707945032196,-151.97,0.00026403,2]
[314040178,1707945032206,-151.97,0.00026478,2]
[314040179,1707945032215,-151.97,0.00026552,2]
[314040180,1707945032225,-151.97,0.00026627,2]
[314040181,1707945032238,-438.86,0.00026637,2]
[314040182,1707945032247,-151.97,0.00026702,2]
[314040183,1707945032256,-152.62,0.00026714,2]
[314040184,1707945032265,-151.97,0.00026776,2]
[314040185,1707945032275,-151.97,0.00026851,2]
[314040186,1707945032286,-1796.97,0.00026921,2]
[314040187,1707945032296,-151.97,0.00026926,2]
[314040188,1707945032306,-3192.57118008,0.00026969,3]
[314040189,1707945032316,-151.97,0.00027001,2]
[314040190,1707945032328,-4191.99,0.00027026,2]
[314040191,1707945032337,-420.0,0.00027064,2]
[314040192,1707945032347,-150.0,0.00027072,2]
[314040193,1707945032356,-151.97,0.00027075,2]
[314040194,1707945032365,-257.0,0.00027093,2]
[314040195,1707945032375,-151.97,0.0002715,2]
[314040196,1707945032385,-5212.25089655,0.000272,2]
[314040197,1707945032394,-152.55018997,0.00027308,2]
[314040198,1707945032405,-3000.0,0.00027397,2]
[314040199,1707945032415,-3000.0,0.00027397,2]
[314040200,1707945032423,-3000.0,0.00027397,2]
[314040201,1707945032433,-3000.0,0.00027397,2]
[314040202,1707945032445,-3000.0,0.00027397,2]
[314040203,1707945032457,-3000.0,0.00027397,2]
[314040204,1707945032466,-3000.0,0.00027397,2]
[314040205,1707945032476,-3000.0,0.00027397,2]
[314040206,1707945032486,-3000.0,0.00027397,2]
[314040207,1707945032497,-3000.0,0.00027397,2]
[314040208,1707945032508,-3000.0,0.00027397,2]
[314040209,1707945032517,-3000.0,0.00027397,2]
[314040210,1707945032527,-3000.0,0.00027397,2]
[314040211,1707945032537,-3000.0,0.00027397,2]
[314040212,1707945032546,-3000.0,0.00027397,2]
[314040213,1707945032557,-3000.0,0.00027397,2]
[314040214,1707945032567,-5157.09746085,0.00027397,2]
[314040215,1707945032576,-20828.29,0.00027397,2]
[314040216,1707945032586,-23900.0,0.00027446,2]
[314040217,1707945032595,-20828.29,0.00027556,2]
[314040218,1707945032605,-150.0,0.00027597,2]
[314040219,1707945032615,-20828.29,0.00027714,2]
[314040220,1707945032625,-150.0,0.00027822,2]
[314040221,1707945032634,-20828.29,0.00027872,2]
[314040222,1707945032643,-438.86,0.00027906,2]
[314040223,1707945032652,-9677.98849654,0.00028,2]
[314040224,1707945032666,-590.87874065,0.00028,2]
[314040225,1707945032678,-3394.12477724,0.00028,2]
[314040226,1707945032713,-2070.01176,0.00028,2]
[314040227,1707945032738,-662.815,0.00028,2]
[314040228,1707945032787,-250.0,0.00028,2]
[314040229,1707945032798,-1556.12664025,0.00028,2]
[314040234,1707945037946,-455.33878552,0.00027297,2]
[314040235,1707945037956,-455.3387855,0.00027599,2]
[314040236,1707945037965,-455.3387855,0.000279,2]
[314040237,1707945037976,-330985.70585015,0.00028,2]
[314040238,1707945037986,-200.0,0.00028,2]
[314040239,1707945037995,-181.10463162,0.00028017,2]
[314040240,1707945038004,-800.0,0.00028027,2]
[314040241,1707945038013,-20828.29,0.0002803,2]
[314040242,1707945038028,-150.0,0.00028145,2]
[314040243,1707945038039,-20828.29,0.00028189,2]
[314040244,1707945038050,-2487.04,0.00028221,2]
[314040245,1707945038061,-165.69,0.00028248,2]
[314040246,1707945038072,-293.22664701,0.00028305,2]
[314040247,1707945038083,-404.12836239,0.00028305,2]
[314040248,1707945038093,-152.55018997,0.0002832,2]
[314040249,1707945038103,-800.0,0.00028329,2]
[314040250,1707945038115,-20828.29,0.00028347,2]
[314040251,1707945038125,-150.0,0.0002837,2]
[314040252,1707945038134,-24246.48671317,0.00028405,2]
[314040253,1707945038143,-20828.29,0.00028505,2]
[314040254,1707945038152,-537.45080432,0.00028558,2]
[314040255,1707945038162,-228.48555763,0.00028596,2]
[314040256,1707945038171,-500.0,0.00028596,2]
[314040257,1707945038180,-500.0,0.00028596,2]
[314040258,1707945038191,-500.0,0.00028596,2]
[314040259,1707945038201,-500.0,0.00028596,2]
[314040260,1707945038210,-464.70888713,0.00028596,2]
[314040261,1707945038219,-500.0,0.00028596,2]
[314040262,1707945038230,-500.0,0.00028596,2]
[314040263,1707945038241,-500.0,0.00028596,2]
[314040264,1707945038250,-500.0,0.00028596,2]
[314040265,1707945038260,-500.0,0.00028596,2]
[314040266,1707945038270,-500.0,0.00028596,2]
[314040267,1707945038279,-500.0,0.00028596,2]
[314040268,1707945038289,-500.0,0.00028596,2]
[314040269,1707945038299,-500.0,0.00028596,2]
[314040270,1707945038309,-500.0,0.00028596,2]
[314040271,1707945038318,-500.0,0.00028596,2]
[314040272,1707945038328,-500.0,0.00028596,2]
[314040273,1707945038339,-500.0,0.00028596,2]
[314040274,1707945038348,-500.0,0.00028596,2]
[314040275,1707945038358,-500.0,0.00028596,2]
[314040276,1707945038368,-500.0,0.00028596,2]
[314040277,1707945038378,-500.0,0.00028596,2]
[314040278,1707945038387,-500.0,0.00028596,2]
[314040279,1707945038397,-500.0,0.00028596,2]
[314040280,1707945038406,-500.0,0.00028596,2]
[314040281,1707945038416,-500.0,0.00028596,2]
[314040282,1707945038427,-500.0,0.00028596,2]
[314040283,1707945038436,-267.42044401,0.00028596,2]
[314040284,1707945038447,-500.0,0.00028596,2]
[314040285,1707945038457,-500.0,0.00028596,2]
[314040286,1707945038467,-462340.0,0.00028597,2]
[314040287,1707945038477,-503.52,0.00028658,2]
[314040288,1707945038488,-20828.29,0.00028664,2]
[314040289,1707945038497,-4191.99,0.0002867,2]
[314040290,1707945038506,-150.0,0.00028693,2]
[314040291,1707945038515,-257.0,0.00028737,2]
[314040292,1707945038525,-20828.29,0.00028822,2]
[314040293,1707945038534,-150.0,0.00028918,2]
[314040294,1707945038543,-192.0,0.00028948,2]